bitfinex/quotes_ETHUSD_20240729
["timestamp","ask_amount","ask_price","bid_price","bid_amount"]
[1722266245490,0.15,3314.6,3314.4,3.01712]
[1722266245657,0.15,3314.6,3314.3,3.01721]
[1722266245864,0.15,3314.6,3314.2,2.2869]
[1722266245865,0.15,3314.6,3314.5,6.03408]
[1722266246078,0.15,3314.6,3314.4,0.530411]
[1722266246279,0.15,3314.6,3314.2,2.2869]
[1722266246462,0.15,3314.6,3314.5,6.03408]
[1722266246960,0.15,3314.6,3314.5,9.03408]
[1722266247148,0.15,3314.6,3314.5,12.60112]
[1722266247350,0.01,3315.0,3314.8,3.01673]
[1722266247550,0.01,3315.0,3314.9,6.03336]
[1722266248462,0.01,3315.0,3314.9,9.03336]
[1722266248787,0.01,3315.0,3314.9,14.48984]
[1722266248991,0.01,3315.0,3314.9,11.47316]
[1722266249569,0.01,3315.0,3314.9,15.03984]
[1722266249863,0.01,3315.0,3314.9,16.5739913]
[1722266250063,0.01,3315.0,3314.9,13.5573113]
[1722266250495,0.01,3315.0,3314.9,16.5739913]
[1722266250794,0.01,3315.0,3314.9,13.5573113]
[1722266251034,0.01,3315.0,3314.9,16.5739913]
[1722266251146,0.01,3315.0,3314.9,19.5906713]
[1722266251351,7.31,3317.3,3315.8,3.01577]
[1722266251553,3.01503,3316.8,3315.5,3.01608]
[1722266251750,3.01601,3315.7,3314.3,2.3678]
[1722266252054,3.01623,3315.4,3314.3,2.3678]
[1722266252248,3.01623,3315.4,3313.7,2.3678]
[1722266252491,3.01614,3315.5,3313.7,2.3678]
[1722266252647,3.01623,3315.4,3314.2,3.01725]
[1722266252848,3.01578,3315.9,3314.3,0.06033833]
[1722266253088,3.01556,3316.2,3313.7,2.3678]
[1722266253299,7.31,3316.5,3314.8,2.3065]
[1722266253461,6.506438,3316.9,3314.8,2.3065]
[1722266253462,3.01583,3315.9,3314.8,2.3065]
[1722266253683,3.01568,3316.0,3314.8,5.32327]
[1722266253878,0.301568,3315.9,3315.2,3.01639]
[1722266254085,0.01,3316.0,3315.0,3.01652]
[1722266254286,3.01578,3315.9,3314.8,2.3065]
[1722266254512,3.01595,3315.7,3314.2,2.4668]
[1722266254686,3.01606,3315.6,3314.2,5.48411]
[1722266254869,3.01614,3315.5,3314.2,5.48408]
[1722266255072,3.01602,3315.7,3314.2,5.48411]
[1722266255301,0.301602,3315.6,3314.2,6.032521]
[1722266255507,3.0162,3315.5,3314.3,3.01722]
[1722266255820,0.01,3316.0,3314.3,3.0172]
[1722266255972,0.01,3316.0,3314.2,2.4668]
[1722266256166,3.01624,3315.4,3314.2,5.4841]
[1722266256490,0.301624,3315.3,3314.7,3.01678]
[1722266256690,0.01,3316.0,3314.8,0.06033163]
[1722266257006,0.01,3316.0,3314.2,2.4668]
[1722266257007,0.01,3316.0,3314.9,3.01668]
[1722266257325,0.01,3316.0,3315.2,3.01638]
[1722266257827,0.01,3316.0,3314.9,3.01665]
[1722266258324,0.01,3316.0,3315.2,2.3732]
[1722266258575,0.01,3316.0,3315.3,0.06031681]
[1722266258747,0.01,3316.0,3315.6,3.01597]
[1722266258887,0.01,3316.0,3315.9,3.01577]
[1722266259910,0.01,3316.0,3315.9,6.03154]
[1722266260097,0.01,3316.0,3315.9,7.184694]
[1722266260298,0.01,3316.0,3315.9,10.200464]
[1722266260499,0.01,3316.0,3315.9,15.604864]
[1722266260686,0.01,3316.0,3315.9,12.589094]
[1722266260882,0.01,3316.0,3315.9,15.604864]
[1722266261199,0.375,3317.6,3316.8,3.01489]
[1722266261600,0.375,3317.6,3316.3,0.06029443]
[1722266261926,0.375,3317.6,3316.9,3.01486]
[1722266262081,0.375,3317.6,3316.7,3.01503]
[1722266262082,0.375,3317.6,3317.0,3.01476]
[1722266263024,0.375,3317.6,3317.1,3.01467]
[1722266263447,0.375,3317.6,3316.3,0.30757544]
[1722266263650,0.375,3317.6,3316.5,3.0152]
[1722266263936,0.375,3317.6,3317.0,3.01469]
[1722266264103,0.375,3317.6,3317.1,3.01466]
[1722266264302,0.375,3317.6,3317.4,3.01435]
[1722266264629,0.375,3317.6,3317.4,3.01434]
[1722266265184,0.375,3317.6,3317.4,3.01432]
[1722266265432,0.375,3317.6,3317.3,0.06028236]
[1722266265636,6.18345,3317.4,3315.1,2.3302]
[1722266265837,2.3443,3317.5,3315.1,2.3302]
[1722266265838,3.01493,3316.9,3315.2,0.729]
[1722266266156,3.01507,3316.7,3315.2,3.01637]
[1722266266344,6.3013,3317.5,3315.3,3.01631]
[1722266266345,3.0153,3316.5,3315.3,3.01631]
[1722266266516,3.0153,3316.5,3315.1,5.34666]
[1722266266517,3.01528,3316.5,3315.2,3.0164]
[1722266266722,2.2531,3316.5,3314.9,3.01665]
[1722266266922,3.01556,3316.2,3314.9,3.01665]
[1722266267116,3.01581,3315.9,3314.5,3.01701]
[1722266267358,3.01581,3315.9,3314.7,3.01686]
[1722266267567,3.317146,3316.1,3314.3,2.4221]
[1722266267863,3.317146,3316.1,3314.8,3.0167]
[1722266267864,3.317176,3316.1,3314.8,3.0167]
[1722266268030,3.169,3316.3,3314.5,3.01704]
[1722266268368,3.01627,3315.4,3314.3,2.4221]
[1722266268529,3.01619,3315.5,3314.3,2.4221]
[1722266268774,3.01619,3315.5,3314.0,3.01743]
[1722266268973,3.01559,3316.1,3314.1,3.01738]
[1722266268974,3.01605,3315.6,3314.1,3.01738]
[1722266269171,3.01606,3315.6,3314.1,3.01738]
[1722266269401,3.0162,3315.5,3314.3,3.01722]
[1722266269570,0.30162,3315.4,3314.4,3.07743497]
[1722266269770,3.169,3316.1,3314.5,3.01704]
[1722266269771,3.01606,3315.6,3314.5,3.01704]
[1722266269972,3.01596,3315.7,3314.6,3.0169]
[1722266270176,3.01595,3315.7,3314.5,3.01696]
[1722266270500,3.169,3316.1,3314.5,3.01704]
[1722266270501,3.01606,3315.6,3314.5,3.01704]
[1722266270674,3.01566,3316.1,3314.8,3.01671]
[1722266270879,3.01559,3316.1,3315.0,3.01658]
[1722266271168,3.01559,3316.1,3314.8,5.32897]
[1722266271169,3.01602,3315.7,3314.8,2.3122]
[1722266271369,3.0156,3316.1,3314.8,5.32891]
[1722266271555,3.0156,3316.1,3314.8,2.3122]
[1722266271753,3.01555,3316.2,3314.8,2.3122]
[1722266271957,0.301555,3316.1,3315.2,3.01633]
[1722266272211,3.0152,3316.6,3315.4,3.01621]
[1722266272357,3.01505,3316.7,3315.4,3.01621]
[1722266272559,2.4818,3317.0,3315.5,0.06031686]
[1722266272761,5.49659,3317.0,3315.7,3.01595]
[1722266272984,7.31,3317.3,3315.8,0.06031572]
[1722266273183,3.01461,3317.2,3315.8,3.07615572]
[1722266273387,3.01485,3317.0,3315.7,3.01589]
[1722266273585,3.01503,3316.8,3315.5,3.01604]
[1722266273793,0.012,3317.0,3315.8,3.01586]
[1722266273794,3.01486,3316.9,3315.8,3.01586]
[1722266274104,0.302686,3316.8,3315.7,3.01595]
[1722266274290,0.302686,3316.8,3315.5,6.03217]
[1722266274291,3.317706,3316.8,3315.5,6.03217]
[1722266274609,3.317706,3316.8,3315.2,3.0]
[1722266274610,3.317696,3316.8,3315.6,3.01596]
[1722266274822,3.01504,3316.7,3315.4,3.01618]
[1722266274965,3.169,3316.7,3315.2,3.0]
[1722266275171,3.01565,3316.1,3314.9,3.01662]
[1722266275390,3.01569,3316.0,3314.8,5.32895]
[1722266275604,3.01565,3316.1,3314.8,2.3122]
[1722266275769,3.01565,3316.1,3314.9,3.01667]
[1722266275968,3.01565,3316.1,3314.8,2.3122]
[1722266275969,0.301565,3316.0,3314.8,2.3122]
[1722266276184,0.301565,3316.0,3314.9,3.01666]
[1722266276185,3.317305,3316.0,3314.9,3.01666]
[1722266276367,0.301565,3316.0,3314.9,3.01666]
[1722266276694,3.317295,3316.0,3314.8,5.32897]
[1722266277025,7.31,3316.8,3315.1,3.01643]
[1722266277313,3.01557,3316.2,3315.0,3.01654]
[1722266277464,3.01557,3316.2,3314.8,5.32896]
[1722266277465,3.01557,3316.2,3314.8,5.3289]
[1722266277669,3.01557,3316.2,3315.0,3.01657]
[1722266277905,0.301557,3316.1,3315.0,3.01657]
[1722266278204,0.301557,3316.1,3315.0,3.01651]
[1722266278407,3.317177,3316.1,3315.0,3.01651]
[1722266278608,3.01562,3316.1,3314.8,2.3122]
[1722266278766,7.31,3316.8,3314.8,2.3122]
[1722266278767,3.169,3316.6,3314.8,2.3122]
[1722266278967,3.01594,3315.8,3314.2,3.0173]
[1722266279228,3.01628,3315.4,3314.2,3.0173]
[1722266279517,3.169,3315.9,3313.5,2.3903]
[1722266279685,3.01654,3315.1,3313.5,2.3903]
[1722266279867,3.01687,3314.7,3313.6,3.01785]
[1722266280069,3.01695,3314.6,3313.5,2.3903]
[1722266280270,0.301695,3314.5,3313.5,2.3903]
[1722266280510,3.01663,3315.0,3313.8,6.03521]
[1722266280669,3.0167,3314.9,3313.8,3.01759]
[1722266280869,6.18537,3315.3,3313.5,5.40822]
[1722266281075,3.01661,3315.0,3313.6,3.01786]
[1722266281304,0.301661,3314.9,3313.8,3.01759]
[1722266281608,3.0169,3314.7,3313.5,5.40822]
[1722266281911,3.01728,3314.3,3313.1,3.0183]
[1722266282074,3.169,3314.4,3312.9,2.2991]
[1722266282417,2.4271,3314.8,3311.6,6.98159]
[1722266282418,3.01774,3313.8,3312.6,3.0187]
[1722266282600,3.01716,3314.4,3313.1,3.01823]
[1722266282808,3.01723,3314.3,3313.2,3.01821]
[1722266283127,0.301723,3314.2,3313.7,3.01776]
[1722266283305,3.01695,3314.6,3313.5,3.01795]
[1722266283611,3.01695,3314.6,3313.1,3.01831]
[1722266283789,3.01708,3314.5,3313.3,3.01813]
[1722266283968,3.169,3314.9,3312.8,3.0]
[1722266284174,2.4903,3314.7,3312.4,3.07929685]
[1722266284404,2.4903,3314.7,3312.5,3.01885]
[1722266284405,1.806,3314.6,3312.5,3.01885]
[1722266284608,3.169,3314.3,3312.2,3.01909]
[1722266284806,3.169,3314.3,3312.6,3.01877]
[1722266284807,3.01761,3313.9,3312.6,3.01877]
[1722266284990,3.01743,3314.1,3312.7,3.01867]
[1722266285316,3.01745,3314.1,3312.3,3.01897]
[1722266285505,3.01745,3314.1,3312.8,3.01859]
[1722266285821,3.01745,3314.1,3312.6,0.06036729]
[1722266285822,3.01759,3313.9,3312.6,0.06036729]
[1722266286126,0.01,3314.0,3313.0,3.0184]
[1722266286469,0.312735,3314.0,3313.4,3.01804]
[1722266286674,0.01,3314.0,3313.8,3.01761]
[1722266286984,0.01,3314.0,3313.5,2.4896]
[1722266287197,0.01,3314.0,3313.4,3.01804]
[1722266287635,0.01,3314.0,3313.3,3.01812]
[1722266287770,0.01,3314.0,3313.8,3.01767]
[1722266287976,0.01,3314.0,3313.9,3.07699365]
[1722266288275,0.01,3314.0,3313.9,6.09458365]
[1722266288629,0.01,3314.0,3313.9,9.64458365]
[1722266289323,3.01598,3315.7,3313.9,6.62699365]
[1722266289530,3.01579,3315.9,3314.0,0.55]
[1722266289673,3.01556,3316.2,3314.9,3.01662]
[1722266289875,3.01569,3316.0,3314.7,3.01686]
[1722266290113,3.01569,3316.0,3314.8,3.01675]
[1722266290315,5.4962,3316.7,3314.6,2.2831]
[1722266290316,3.01578,3315.9,3314.6,2.2831]
[1722266290529,3.01578,3315.9,3314.6,0.06033381]
[1722266290530,0.301578,3315.8,3314.6,0.06033381]
[1722266290674,0.301578,3315.8,3314.5,3.01702]
[1722266290675,0.301578,3315.8,3315.0,3.01651]
[1722266290870,0.301578,3315.8,3314.8,3.01671]
[1722266290871,3.01521,3316.6,3315.1,0.06032145]
[1722266291085,3.169,3315.5,3313.0,2.3579]
[1722266291321,3.01666,3315.0,3313.5,3.01789]
[1722266291564,2.7868747,3316.3,3313.2,3.01821]
[1722266291859,3.01692,3314.7,3313.5,3.01794]
[1722266292153,3.169,3315.6,3313.7,3.01777]
[1722266292355,3.01664,3315.0,3313.7,3.0177]
[1722266292553,3.01664,3315.0,3313.8,0.30177]
[1722266292709,3.01664,3315.0,3313.8,3.31945]
[1722266292911,3.01634,3315.3,3314.1,3.01734]
[1722266293120,3.0165,3315.1,3314.0,3.0175]
[1722266293319,3.0165,3315.1,3313.9,3.01754]
[1722266293548,3.0165,3315.1,3313.8,3.31944]
[1722266293549,3.01686,3314.7,3313.8,0.30177]
[1722266293786,3.01668,3314.9,3313.5,6.01789]
[1722266294062,3.01668,3314.9,3313.7,3.01775]
[1722266294256,3.01668,3314.9,3313.5,6.01789]
[1722266294257,0.301634,3315.2,3313.5,3.0]
[1722266294422,0.301634,3315.2,3313.9,3.01758]
[1722266294765,8.6847,3315.8,3313.8,5.38691]
[1722266294766,3.01664,3315.0,3313.8,5.38691]
[1722266294962,3.01617,3315.5,3313.8,5.38691]
[1722266294963,3.01669,3314.9,3313.9,3.0]
[1722266295113,3.01649,3315.2,3313.3,0.3014]
[1722266295315,3.169,3314.3,3312.6,3.03]
[1722266295554,3.01805,3313.4,3311.7,3.01957]
[1722266295716,3.01812,3313.4,3312.2,3.01913]
[1722266295915,3.01857,3312.9,3311.8,3.01948]
[1722266296444,3.01841,3313.0,3311.6,5.48266]
[1722266296653,3.01841,3313.0,3311.6,2.463]
[1722266296812,3.01814,3313.3,3311.9,3.0194]
[1722266297013,3.02957,3314.0,3312.6,3.01875]
[1722266297253,3.01832,3313.1,3311.6,2.463]
[1722266297430,3.01868,3312.7,3311.6,2.463]
[1722266297764,2.3053,3313.4,3311.7,3.01958]
[1722266297765,3.0186,3312.8,3311.7,3.01958]
[1722266297916,3.01878,3312.6,3311.6,0.005]
[1722266298364,3.24867,3313.3,3311.6,0.005]
[1722266298365,6.18751,3312.9,3311.6,0.005]
[1722266298658,3.01897,3312.4,3311.6,0.005]
[1722266298897,4.806,3313.2,3311.6,0.005]
[1722266298898,5.4743,3312.2,3311.6,0.005]
[1722266299034,3.01947,3311.9,3311.6,0.005]
[1722266299377,2.3053,3312.2,3311.6,0.005]
[1722266299593,0.23053,3312.1,3311.6,0.005]
[1722266300088,4.1113,3312.9,3311.6,0.005]
[1722266300089,3.169,3311.8,3311.6,0.005]
[1722266300240,3.01959,3311.7,3311.6,0.005]
[1722266300440,3.01943,3311.9,3311.6,0.005]
[1722266300692,3.01959,3311.7,3311.6,0.005]
[1722266300891,3.321453,3311.8,3311.6,0.005]
[1722266300892,0.301943,3311.8,3311.6,0.005]
[1722266301035,6.18812,3312.3,3311.6,0.005]
[1722266301347,3.01861,3312.8,3311.6,0.005]
[1722266301550,3.02952,3314.0,3311.6,0.005]
[1722266301551,3.01828,3313.2,3311.6,0.005]
[1722266301871,2.3399,3313.5,3311.6,0.005]
[1722266301872,3.01922,3312.2,3311.6,0.005]
[1722266302050,0.301922,3312.1,3311.6,0.005]
[1722266302237,3.0192,3312.2,3311.6,0.005]
[1722266302869,3.01898,3312.4,3311.6,0.005]
[1722266303186,3.169,3312.8,3311.6,0.005]
[1722266303354,3.01736,3314.2,3311.6,0.005]
[1722266303355,3.01816,3313.3,3311.6,0.005]
[1722266303553,0.301816,3313.2,3311.9,3.01939]
[1722266303781,0.301816,3313.2,3311.9,2.4165]
[1722266303939,0.012,3314.0,3312.6,3.01877]
[1722266303940,7.322,3314.0,3312.6,3.01877]
[1722266304145,3.01763,3313.9,3312.5,3.0188]
[1722266304382,3.01763,3313.9,3312.6,3.01877]
[1722266304682,3.181,3314.0,3311.6,3.02464]
[1722266304683,3.01807,3313.4,3311.6,3.0246]
[1722266304893,3.01807,3313.4,3312.0,3.01926]
[1722266304894,3.01816,3313.3,3312.0,3.01926]
[1722266305057,3.01816,3313.3,3311.8,3.01949]
[1722266305259,3.01838,3313.1,3311.8,3.01949]
[1722266305450,3.169,3313.0,3312.0,3.01931]
[1722266305644,3.169,3313.0,3311.6,0.005]
[1722266305876,6.18742,3313.0,3311.8,3.0195]
[1722266306057,6.18742,3313.0,3311.6,3.02468]
[1722266306058,3.0186,3312.8,3311.6,3.02468]
[1722266306272,3.01884,3312.6,3311.6,0.005]
[1722266306475,3.01896,3312.4,3311.6,0.005]
[1722266306777,3.01893,3312.5,3311.6,0.005]
[1722266306953,6.03786,3312.5,3311.6,0.005]
[1722266307149,3.01895,3312.4,3311.6,0.005]
[1722266307557,3.169,3312.6,3311.6,0.005]
[1722266307558,3.01894,3312.5,3311.6,0.005]
[1722266307862,3.01871,3312.7,3311.6,0.005]
[1722266308052,3.169,3312.8,3311.6,3.02468]
[1722266308275,3.169,3312.8,3311.6,0.005]
[1722266308482,6.18761,3312.8,3311.6,3.02468]
[1722266308685,3.0,3313.2,3311.6,0.005]
[1722266308686,0.1886957,3312.4,3311.6,0.005]
[1722266308999,12.22777,3311.7,3311.6,0.005]
[1722266309148,17.05336,3311.7,3311.6,0.005]
[1722266309349,17.03377,3311.7,3311.6,0.005]
[1722266309563,17.58377,3311.7,3311.6,0.005]
[1722266309857,14.56418,3311.7,3311.6,0.005]
[1722266310065,14.01418,3311.7,3311.6,0.005]
[1722266310293,17.03377,3311.7,3311.6,0.005]
[1722266310509,3.01987,3311.4,3311.3,0.005]
[1722266310652,11.01564,3310.9,3310.2,0.1479984]
[1722266310853,9.20964,3310.9,3310.2,0.1479984]
[1722266311089,15.77996,3310.9,3310.2,0.1479984]
[1722266311265,17.58596,3310.9,3310.2,0.1479984]
[1722266311472,14.56564,3310.9,3310.2,0.1479984]
[1722266311669,3.169,3311.0,3310.2,0.1479984]
[1722266311992,6.18928,3311.0,3310.2,0.1479984]
[1722266312296,3.169,3310.9,3310.2,0.1479984]
[1722266312591,9.75964,3310.9,3310.2,0.1479984]
[1722266312791,9.20964,3310.9,3310.2,0.1479984]
[1722266312990,3.169,3310.9,3310.2,0.1479984]
[1722266313290,6.18932,3310.9,3310.2,0.1479984]
[1722266313605,3.169,3310.9,3310.2,0.1479984]
[1722266313811,9.75964,3310.9,3310.2,0.1479984]
[1722266314012,9.20964,3310.9,3310.2,0.1479984]
[1722266314496,12.22996,3310.9,3310.2,0.1479984]
[1722266314707,15.12256,3310.9,3310.2,0.1479984]
[1722266314882,12.10224,3310.9,3310.2,0.1479984]
[1722266315284,6.18932,3310.9,3310.2,0.1479984]
[1722266315494,3.169,3310.9,3310.2,0.1479984]
[1722266315882,9.20964,3310.9,3310.2,0.1479984]
[1722266318279,12.22996,3310.9,3310.2,0.1479984]
[1722266318488,9.75964,3310.9,3310.2,0.1479984]
[1722266318732,6.18932,3310.9,3310.2,0.1479984]
[1722266319285,3.169,3310.9,3310.2,0.1479984]
[1722266319737,9.20964,3310.9,3310.2,0.1479984]
[1722266320092,12.22996,3310.9,3310.2,0.1479984]
[1722266320290,9.20964,3310.9,3310.2,0.1479984]
[1722266320690,12.22996,3310.9,3310.2,0.1479984]
[1722266320886,12.77996,3310.9,3310.2,0.1479984]
[1722266321217,9.20964,3310.9,3310.2,0.1479984]
[1722266321613,12.77996,3310.9,3310.2,0.1479984]
[1722266322255,15.77996,3310.9,3310.2,0.1479984]
[1722266322458,20.60628,3310.9,3310.2,0.1479984]
[1722266322606,16.30691,3310.3,3310.2,0.1479984]
[1722266322803,14.03761,3310.3,3310.2,0.1479984]
[1722266323209,14.58761,3310.3,3310.2,0.1479984]
[1722266323656,6.04174,3310.3,3310.2,0.1479984]
[1722266323839,3.02085,3310.4,3310.2,0.1479984]
[1722266323999,3.0207,3310.5,3310.2,0.1479984]
[1722266324205,2.2693,3310.9,3310.2,0.1479984]
[1722266324509,5.28967,3310.9,3310.2,0.1479984]
[1722266324810,3.0207,3310.5,3310.2,0.1479984]
[1722266325058,9.06261,3310.3,3310.2,0.1479984]
[1722266325202,12.08348,3310.3,3310.2,0.1479984]
[1722266325401,2.1988,3310.2,3309.2,3.80297263]
[1722266325640,2.1988,3310.2,3306.8,0.1479984]
[1722266325641,12.09004,3308.5,3306.8,0.1479984]
[1722266325807,3.169,3307.8,3306.8,0.1479984]
[1722266326010,3.169,3307.5,3306.8,0.1479984]
[1722266326229,3.169,3307.5,3305.8,2.90780594]
[1722266326230,4.1456957,3307.5,3305.8,2.90780594]
[1722266326432,3.02531,3305.5,3304.1,5.87809917]
[1722266326751,3.02428,3306.6,3304.2,0.3014]
[1722266326752,3.02517,3305.6,3304.2,0.3014]
[1722266326961,3.0,3306.3,3304.2,0.3014]
[1722266327159,4.507,3306.2,3304.2,0.3014]
[1722266327313,3.02467,3306.2,3304.6,3.02606]
[1722266327513,0.1886957,3306.4,3304.2,0.3014]
[1722266327749,3.02515,3305.7,3304.2,0.3014]
[1722266327946,0.55,3306.3,3304.2,0.3014]
[1722266328152,0.1886957,3306.4,3304.3,0.91934992]
[1722266328358,3.02369,3307.3,3305.5,2.2833]
[1722266328650,3.957,3308.6,3305.5,5.3085]
[1722266328651,3.02343,3307.5,3305.5,5.3085]
[1722266328898,3.02227,3308.8,3305.5,5.3085]
[1722266328899,3.02312,3307.9,3305.9,3.02487]
[1722266329061,3.02284,3308.2,3306.5,3.02433]
[1722266329266,3.02263,3308.4,3306.6,3.0]
[1722266329461,3.02307,3307.9,3306.2,5.4787]
[1722266329660,3.02261,3308.4,3306.3,0.24787]
[1722266329901,3.02261,3308.4,3306.5,3.02433]
[1722266330197,3.2108257,3309.0,3306.5,0.929656]
[1722266330198,3.0227,3308.3,3306.5,0.929656]
[1722266330408,3.0227,3308.3,3306.3,3.24787]
[1722266330409,3.02261,3308.4,3306.9,3.02396]
[1722266330547,3.03305,3308.0,3306.6,3.0]
[1722266330754,0.01,3308.0,3306.8,3.02405]
[1722266331078,0.01,3308.0,3306.5,6.02434]
[1722266331249,0.01,3308.0,3306.6,0.602434]
[1722266331449,0.01,3308.0,3306.3,0.24787]
[1722266331750,0.01,3308.0,3307.0,3.0238]
[1722266331950,0.01,3308.0,3306.5,3.0]
[1722266332158,0.01,3308.0,3306.6,3.02425]
[1722266332395,0.01,3308.0,3306.8,3.02405]
[1722266332607,0.01,3308.0,3307.3,3.02354]
[1722266332806,0.01,3308.0,3307.7,3.02324]
[1722266333013,0.01,3308.0,3307.7,3.02317]
[1722266333212,3.02187,3309.3,3307.7,3.02317]
[1722266333380,3.02187,3309.3,3307.8,3.02314]
[1722266333705,3.02189,3309.2,3307.8,0.302314]
[1722266333875,3.02161,3309.5,3307.7,3.02322]
[1722266334079,0.1479984,3309.6,3307.8,3.02314]
[1722266334618,3.02197,3309.1,3307.6,3.02327]
[1722266334819,3.02179,3309.3,3307.8,3.02315]
[1722266335014,0.1479984,3309.6,3307.7,3.0]
[1722266335015,3.02198,3309.1,3307.7,3.0]
[1722266335302,3.1695084,3309.6,3307.8,0.602327]
[1722266335524,0.1479984,3309.6,3308.2,3.02278]
[1722266335809,0.1479984,3309.6,3308.0,3.02294]
[1722266335810,3.02161,3309.5,3308.0,3.02294]
[1722266335968,3.02192,3309.2,3308.1,3.0]
[1722266336166,3.0217,3309.4,3308.1,0.83874]
[1722266336486,0.1479984,3309.6,3308.1,3.83874]
[1722266336819,0.1479984,3309.6,3308.2,3.0]
[1722266337104,0.1479984,3309.6,3308.3,0.383874]
[1722266337313,0.1479984,3309.6,3308.4,3.0226]
[1722266337468,0.1479984,3309.6,3308.7,3.02231]
[1722266337811,0.1479984,3309.6,3308.1,0.83874]
[1722266337812,0.1479984,3309.6,3308.8,3.0]
[1722266338016,0.1479984,3309.6,3308.9,2.4391]
[1722266338377,0.1479984,3309.6,3309.2,3.02187]
[1722266338716,0.1479984,3309.6,3308.9,2.4391]
[1722266339269,0.1479984,3309.6,3309.1,3.02195]
[1722266339618,0.1479984,3309.6,3308.9,2.68301]
[1722266339925,0.008,3310.0,3309.4,3.02165]
[1722266340064,3.169,3311.9,3309.5,3.06042471]
[1722266340263,7.99482,3311.5,3309.5,3.0]
[1722266340507,3.02048,3310.8,3309.3,3.02177]
[1722266340719,3.02121,3310.0,3308.9,2.4391]
[1722266340918,3.169,3310.9,3308.9,2.4391]
[1722266340919,3.02052,3310.7,3308.9,2.4391]
[1722266341204,3.02106,3310.1,3308.9,2.4391]
[1722266341403,3.02096,3310.3,3308.9,2.4391]
[1722266341620,3.02113,3310.1,3308.9,2.4391]
[1722266341919,1.806,3310.8,3308.9,2.4391]
[1722266342067,1.59164521,3313.5,3308.9,2.4391]
[1722266342068,3.01924,3312.1,3309.1,3.02195]
[1722266342264,3.02078,3310.4,3309.2,3.0]
[1722266342504,3.0195,3311.8,3309.2,3.0]
[1722266342714,3.02041,3310.8,3309.2,3.0]
[1722266342871,3.02034,3310.9,3309.3,3.08221069]
[1722266343070,5.30401,3312.2,3309.4,3.0]
[1722266343274,5.30401,3312.2,3308.9,6.3961]
[1722266343275,0.012,3311.0,3308.9,6.3961]
[1722266343503,3.169,3310.7,3308.9,2.4391]
[1722266343718,3.02066,3310.6,3308.9,2.4391]
[1722266343875,0.012,3311.0,3308.9,2.4391]
[1722266344206,3.02103,3310.2,3308.9,6.3961]
[1722266344423,3.02102,3310.2,3308.9,6.3961]
[1722266344720,3.02124,3309.9,3308.9,6.3961]
[1722266344925,3.02133,3309.8,3309.0,3.0]
[1722266345214,3.02196,3309.2,3308.2,2.4841]
[1722266345369,3.02184,3309.3,3308.2,2.4841]
[1722266345569,3.02164,3309.5,3308.2,2.4841]
[1722266345813,3.0218,3309.3,3308.2,2.4841]
[1722266345975,3.02188,3309.2,3308.2,2.4841]
[1722266346170,3.02148,3309.7,3308.2,2.4841]
[1722266346370,3.02252,3308.5,3308.2,2.4841]
[1722266346606,3.02201,3309.1,3308.2,2.4841]
[1722266346816,3.02167,3309.5,3307.2,2.3666]
[1722266346817,3.0227,3308.3,3307.2,2.3666]
[1722266346973,6.19069,3309.4,3307.2,2.3666]
[1722266346974,3.02258,3308.5,3307.2,2.3666]
[1722266347171,3.02266,3308.4,3307.2,2.3666]
[1722266347690,3.0223,3308.8,3307.4,3.02344]
[1722266347869,3.02198,3309.1,3307.5,0.06046076]
[1722266348083,3.02198,3309.1,3306.7,3.02408]
[1722266348084,1.211737,3309.6,3308.3,3.957]
[1722266348398,3.02037,3310.9,3309.0,2.2956]
[1722266348601,3.02095,3310.3,3309.0,2.2956]
[1722266348766,0.28484189,3310.2,3309.1,3.02196]
[1722266348970,3.02072,3310.5,3309.1,3.02196]
[1722266349175,3.02097,3310.2,3309.0,2.2956]
[1722266349374,3.02082,3310.4,3309.0,5.2956]
[1722266349611,3.02093,3310.3,3309.0,5.63711892]
[1722266349815,3.02114,3310.1,3309.0,5.63711892]
[1722266350114,3.02071,3310.5,3309.0,8.31763]
[1722266350274,3.02084,3310.4,3309.1,3.02195]
[1722266350474,3.02084,3310.4,3309.0,8.31765]
[1722266350712,3.0209,3310.3,3309.0,8.31765]
[1722266350871,3.02084,3310.4,3309.0,5.2956]
[1722266350872,3.02103,3310.2,3309.0,5.2956]
[1722266351078,3.02084,3310.4,3309.0,5.2956]
[1722266351302,3.02039,3310.9,3309.0,2.2956]
[1722266351522,3.02084,3310.4,3309.0,2.2956]
[1722266351707,3.02069,3310.5,3309.1,0.06043485]
[1722266351928,3.02069,3310.5,3309.2,0.53780849]
[1722266352247,2.3449,3312.4,3309.2,0.53780849]
[1722266352248,3.02122,3310.0,3309.2,0.53780849]
[1722266352401,3.02124,3309.9,3309.1,3.0]
[1722266352600,3.02124,3309.9,3309.0,2.2956]
[1722266352601,1.806,3310.9,3309.0,2.2956]
[1722266352795,3.02231,3308.8,3308.3,2.3126]
[1722266352996,1.806,3310.3,3308.3,2.3126]
[1722266353231,5.62263105,3310.2,3308.3,2.3126]
[1722266353433,3.0226,3308.4,3308.3,2.3126]
[1722266353700,4.82743,3309.7,3308.3,2.3126]
[1722266353701,3.02161,3309.5,3308.3,2.3126]